bitfinex/quotes_BTCUSD_20250902
["timestamp","ask_amount","ask_price","bid_price","bid_amount"]
[1756823915939,0.92347804,111810.0,111800.0,0.0004679]
[1756823916356,0.92247804,111810.0,111800.0,0.0004679]
[1756823916787,0.92347804,111810.0,111800.0,0.0004679]
[1756823916993,0.91720292,111810.0,111800.0,0.0004679]
[1756823917202,0.76319359,111810.0,111800.0,0.0004679]
[1756823917418,0.92343359,111810.0,111800.0,0.0004679]
[1756823917669,0.51890687,111790.0,111780.0,0.0004]
[1756823917891,0.77733353,111790.0,111780.0,0.0004]
[1756823918113,0.61709353,111790.0,111780.0,0.0004]
[1756823918325,0.77733353,111790.0,111780.0,0.00533]
[1756823918539,0.80423935,111790.0,111780.0,0.00533]
[1756823918751,0.73591534,111790.0,111780.0,0.0004]
[1756823918941,0.80419935,111790.0,111780.0,0.00533]
[1756823919108,0.80419935,111790.0,111780.0,0.0014]
[1756823919332,0.80419935,111790.0,111780.0,0.0034]
[1756823919536,0.64399935,111790.0,111780.0,0.0034]
[1756823919700,0.89611534,111790.0,111780.0,0.0034]
[1756823920312,0.89611534,111790.0,111780.0,0.0024]
[1756823920744,0.97069378,111790.0,111780.0,0.0024]
[1756823921816,0.81049378,111790.0,111780.0,0.0024]
[1756823922079,1.03949378,111790.0,111780.0,0.0024]
[1756823922292,1.03949378,111790.0,111780.0,0.0004]
[1756823923613,1.04049378,111790.0,111780.0,0.0004]
[1756823924072,1.04149378,111790.0,111780.0,0.0004]
[1756823924314,1.24149378,111790.0,111780.0,0.0004]
[1756823925025,6.24149378,111790.0,111780.0,0.0004]
[1756823925532,6.24145378,111790.0,111780.0,0.0004]
[1756823925782,6.48984806,111790.0,111780.0,1e-08]
[1756823926280,6.65385838,111790.0,111780.0,1e-08]
[1756823926498,6.49369838,111790.0,111780.0,1e-08]
[1756823926719,6.65385838,111790.0,111780.0,1e-08]
[1756823926944,6.65185838,111790.0,111780.0,1e-08]
[1756823927167,6.65485838,111790.0,111780.0,1e-08]
[1756823927380,6.65985838,111790.0,111780.0,1e-08]
[1756823927791,6.62740292,111790.0,111780.0,1e-08]
[1756823928337,6.31724292,111790.0,111780.0,1e-08]
[1756823928547,5.9463041,111790.0,111780.0,1e-08]
[1756823928771,1.1064641,111790.0,111780.0,1e-08]
[1756823928978,1.1034641,111790.0,111780.0,1e-08]
[1756823929655,1.1074641,111790.0,111780.0,1e-08]
[1756823930097,1.1104641,111790.0,111780.0,1e-08]
[1756823930778,1.1104241,111790.0,111780.0,1e-08]
[1756823931903,1.01892287,111780.0,111770.0,0.00301]
[1756823932102,1.36914552,111780.0,111770.0,0.00301]
[1756823932310,0.17893889,111770.0,111760.0,0.0004]
[1756823932500,0.43724555,111770.0,111760.0,0.0004]
[1756823932734,0.43938555,111770.0,111760.0,0.0004]
[1756823932947,0.43938555,111770.0,111760.0,1e-08]
[1756823933172,0.53489005,111770.0,111760.0,1e-08]
[1756823933567,0.53489005,111770.0,111760.0,8.391e-05]
[1756823934537,0.53889005,111770.0,111760.0,8.391e-05]
[1756823934732,0.17898693,111740.0,111730.0,0.06983022]
[1756823934965,0.1852576,111740.0,111730.0,0.07199088]
[1756823935372,0.6852576,111740.0,111730.0,0.00517066]
[1756823937242,0.6852576,111740.0,111730.0,0.00817066]
[1756823937599,0.1852576,111740.0,111730.0,0.00817066]
[1756823938209,0.22437183,111740.0,111730.0,0.00817066]
[1756823939085,0.27717359,111740.0,111730.0,0.00817066]
[1756823939243,0.27915359,111740.0,111730.0,0.00817066]
[1756823939447,0.61915359,111740.0,111730.0,0.00314066]
[1756823939871,0.72741104,111740.0,111730.0,1e-08]
[1756823940073,0.81932703,111740.0,111730.0,1e-08]
[1756823940281,0.51900295,111730.0,111720.0,0.0004]
[1756823940504,0.61718961,111730.0,111720.0,0.00341]
[1756823940712,0.77722961,111730.0,111720.0,0.00543]
[1756823941188,0.79191321,111730.0,111720.0,0.00543]
[1756823941380,0.77722961,111730.0,111720.0,0.00543]
[1756823942206,0.77822961,111730.0,111720.0,0.00543]
[1756823942408,0.61818961,111730.0,111720.0,0.00543]
[1756823942605,0.77922961,111730.0,111720.0,0.00543]
[1756823942949,0.87523965,111730.0,111720.0,0.00543]
[1756823944831,0.8061481,111730.0,111720.0,0.00543]
[1756823945206,0.8061481,111730.0,111720.0,0.0004]
[1756823945207,0.8081281,111730.0,111720.0,0.0004]
[1756823945402,0.8106281,111730.0,111720.0,0.0004]
[1756823945633,0.80813045,111730.0,111720.0,0.0004]
[1756823946266,0.81063045,111730.0,111720.0,0.0004]
[1756823946480,0.74000644,111730.0,111720.0,0.0004]
[1756823946684,0.90000644,111730.0,111720.0,0.00242]
[1756823948276,0.90000644,111730.0,111720.0,0.0004]
[1756823948489,0.90250644,111730.0,111720.0,0.0004]
[1756823948692,0.17901897,111720.0,111710.0,1e-08]
[1756823948895,0.36912397,111720.0,111710.0,1e-08]
[1756823949027,0.71111397,111720.0,111710.0,1e-08]
[1756823949237,0.71360397,111720.0,111710.0,1e-08]
[1756823949435,5.77930397,111720.0,111710.0,1e-08]
[1756823949672,5.98756241,111720.0,111710.0,1e-08]
[1756823950206,6.14756241,111720.0,111710.0,1e-08]
[1756823950791,0.61919798,111720.0,111710.0,0.00213001]
[1756823951033,0.77915798,111720.0,111710.0,0.00213001]
[1756823951785,0.77915798,111720.0,111710.0,1e-08]
[1756823951991,0.61919798,111720.0,111710.0,0.00213001]
[1756823952253,0.77716798,111720.0,111710.0,0.00615001]
[1756823952624,0.86908397,111720.0,111710.0,0.00515001]
[1756823952824,0.87108397,111720.0,111710.0,1e-08]
[1756823953181,0.71112397,111720.0,111710.0,0.00213001]
[1756823953385,0.77916798,111720.0,111710.0,0.00515001]
[1756823953828,0.79318438,111720.0,111710.0,0.00515001]
[1756823954191,0.29322438,111720.0,111710.0,0.00515001]
[1756823954820,0.63322438,111720.0,111710.0,0.00515001]
[1756823955250,0.63122438,111720.0,111710.0,0.00515001]
[1756823955663,0.79118438,111720.0,111710.0,0.00615001]
[1756823955875,0.79118102,111720.0,111710.0,0.00615001]
[1756823958312,0.79316102,111720.0,111710.0,0.00615001]
[1756823958542,0.79118102,111720.0,111710.0,0.00615001]
[1756823958761,0.79316102,111720.0,111710.0,0.00615001]
[1756823958944,0.79316102,111720.0,111710.0,0.00313001]
[1756823959148,0.79118102,111720.0,111710.0,0.00615001]
[1756823959370,0.88309701,111720.0,111710.0,0.00615001]
[1756823959690,0.88507701,111720.0,111710.0,0.00313001]
[1756823959923,0.88309701,111720.0,111710.0,0.00615001]
[1756823961021,0.53930503,111720.0,111710.0,0.00615001]
[1756823961249,0.53930503,111720.0,111710.0,0.04789157]
[1756823961946,0.18528863,111720.0,111710.0,0.04789157]
[1756823962823,0.27918462,111720.0,111710.0,0.00313001]
[1756823963046,0.27918462,111720.0,111710.0,0.00100001]
[1756823963474,0.27918462,111720.0,111710.0,0.00313001]
[1756823963929,0.27720462,111720.0,111710.0,0.00615001]
[1756823964360,0.61918462,111720.0,111710.0,0.00100001]
[1756823965288,0.63320121,111720.0,111710.0,0.00100001]
[1756823965717,0.63570121,111720.0,111710.0,0.00100001]
[1756823965933,0.7276172,111720.0,111710.0,0.00100001]
[1756823966807,0.8849572,111720.0,111710.0,0.00100001]
[1756823967305,0.8859572,111720.0,111710.0,0.00100001]
[1756823967574,0.8859572,111720.0,111710.0,0.00313001]
[1756823967793,0.8859572,111720.0,111710.0,1e-08]
[1756823968012,0.8884572,111720.0,111710.0,1e-08]
[1756823968196,0.9541572,111720.0,111710.0,1e-08]
[1756823968799,0.9551572,111720.0,111710.0,1e-08]
[1756823969172,0.7953172,111720.0,111710.0,1e-08]
[1756823969373,0.7928172,111720.0,111710.0,1e-08]
[1756823969587,0.79500121,111720.0,111710.0,1e-08]
[1756823969780,0.78098462,111720.0,111710.0,1e-08]
[1756823970396,0.62118462,111720.0,111710.0,1e-08]
[1756823970598,0.78098462,111720.0,111710.0,1e-08]
[1756823971442,0.62118462,111720.0,111710.0,1e-08]
[1756823971645,0.78098462,111720.0,111710.0,1e-08]
[1756823972960,0.63322173,111720.0,111710.0,0.00515001]
[1756823973190,0.20130574,111720.0,111710.0,0.04689157]
[1756823974507,0.20130574,111720.0,111710.0,0.22592657]
[1756823974984,0.20130574,111720.0,111710.0,0.04689157]
[1756823975647,0.23933661,111720.0,111710.0,0.00515001]
[1756823975855,0.29322173,111720.0,111710.0,0.00515001]
[1756823976083,0.45298173,111720.0,111710.0,0.00515001]
[1756823976366,0.79496173,111720.0,111710.0,1e-08]
[1756823976616,0.79746173,111720.0,111710.0,1e-08]
[1756823976790,0.91630276,111720.0,111710.0,1e-08]
[1756823977043,0.91376276,111720.0,111710.0,1e-08]
[1756823977244,0.92389639,111720.0,111710.0,1e-08]
[1756823978254,0.92639639,111720.0,111710.0,1e-08]
[1756823978458,0.96420786,111720.0,111710.0,1e-08]
[1756823980072,0.96670786,111720.0,111710.0,1e-08]
[1756823981428,0.96420786,111720.0,111710.0,1e-08]
[1756823981562,0.96670786,111720.0,111710.0,1e-08]
[1756823982559,0.96420786,111720.0,111710.0,1e-08]
[1756823983010,0.96416786,111720.0,111710.0,1e-08]
[1756823983211,0.80448786,111720.0,111710.0,1e-08]
[1756823983334,0.71257187,111720.0,111710.0,0.00199001]
[1756823983537,0.87225187,111720.0,111710.0,0.00493001]
[1756823983968,0.70047627,111720.0,111710.0,0.00493001]
[1756823984249,0.3201648,111720.0,111710.0,0.00493001]
[1756823984392,0.27922265,111720.0,111710.0,0.00493001]
[1756823984592,0.28117265,111720.0,111710.0,0.00493001]
[1756823984801,0.68585034,111720.0,111710.0,1e-08]
[1756823986059,0.84549034,111720.0,111710.0,0.00199001]
[1756823986241,0.84799034,111720.0,111710.0,1e-08]
[1756823986639,0.87491359,111720.0,111710.0,1e-08]
[1756823987063,0.93958359,111720.0,111710.0,1e-08]
[1756823987269,1.00842359,111720.0,111710.0,1e-08]
[1756823988133,6.26668203,111720.0,111710.0,1e-08]
[1756823988359,6.28762085,111720.0,111710.0,1e-08]
[1756823988560,6.30164044,111720.0,111710.0,1e-08]
[1756823988779,6.14200044,111720.0,111710.0,1e-08]
[1756823988981,6.30160044,111720.0,111710.0,1e-08]
[1756823989216,6.30064044,111720.0,111710.0,1e-08]
[1756823989414,6.30364044,111720.0,111710.0,1e-08]
[1756823989837,6.30264044,111720.0,111710.0,1e-08]
[1756823990044,6.14300044,111720.0,111710.0,1e-08]
[1756823990246,6.24096275,111720.0,111710.0,1e-08]
[1756823991082,6.19096275,111720.0,111710.0,1e-08]
[1756823991346,6.24096275,111720.0,111710.0,1e-08]
[1756823991549,5.90096275,111720.0,111710.0,1e-08]
[1756823991733,6.24096275,111720.0,111710.0,1e-08]
[1756823991913,6.28287874,111720.0,111710.0,1e-08]
[1756823992133,6.28283874,111720.0,111710.0,1e-08]
[1756823992593,6.28283874,111720.0,111680.0,0.00334]
[1756823992594,0.17906706,111690.0,111680.0,0.0004]
[1756823992794,0.27098305,111690.0,111680.0,0.0004]
[1756823992939,0.27098305,111690.0,111680.0,0.00239]
[1756823993135,0.27098305,111690.0,111680.0,0.00533]
[1756823993893,0.27112306,111690.0,111680.0,0.04707156]
[1756823994027,0.17920707,111690.0,111680.0,0.04807156]
[1756823994446,0.67920707,111690.0,111680.0,0.04807156]
[1756823994654,0.17920707,111690.0,111680.0,0.04807156]
[1756823996079,0.23099033,111690.0,111680.0,0.04807156]
[1756823996284,0.32919274,111690.0,111680.0,0.00633]
[1756823996671,0.61740948,111690.0,111680.0,0.00633]
[1756823996890,0.61935948,111690.0,111680.0,0.0014]
[1756823997711,0.61935948,111690.0,111680.0,0.00339]
[1756823997991,0.77696948,111690.0,111680.0,0.00633]
[1756823998330,0.77692948,111690.0,111680.0,0.00633]
[1756823998530,0.86884547,111690.0,111680.0,0.00633]
[1756823998731,0.77692948,111690.0,111680.0,0.00633]
[1756824000083,0.61740948,111690.0,111680.0,0.00633]
[1756824000289,0.61112306,111690.0,111680.0,0.00633]
[1756824001576,0.61740702,111690.0,111680.0,0.00633]
[1756824001995,0.85926721,111690.0,111680.0,0.00633]
[1756824002210,0.61740702,111690.0,111680.0,0.00633]
[1756824002415,0.61112306,111690.0,111680.0,0.00633]
[1756824003095,0.61740686,111690.0,111680.0,0.00633]
[1756824003314,0.61935686,111690.0,111680.0,0.0014]
[1756824003532,0.65053325,111690.0,111680.0,0.0014]
[1756824003752,0.71377285,111690.0,111680.0,0.0014]
[1756824003977,0.51909913,111670.0,111660.0,0.0004]
[1756824004194,0.77677892,111670.0,111660.0,0.0004]
[1756824004399,0.77872892,111670.0,111660.0,0.0004]
[1756824005272,0.78122892,111670.0,111660.0,0.0004]
[1756824005674,0.78864275,111670.0,111660.0,0.00239]
[1756824005894,0.78235895,111670.0,111660.0,0.0004]
[1756824006108,0.78669677,111670.0,111660.0,0.00633]
[1756824006280,0.62721677,111670.0,111660.0,0.00533]
[1756824006477,0.62721677,111670.0,111660.0,0.0004]
[1756824006478,0.78864677,111670.0,111660.0,0.0004]
[1756824006679,0.72108276,111670.0,111660.0,0.0004]
[1756824006884,0.88056276,111670.0,111660.0,0.0004]
[1756824007107,0.72358276,111670.0,111660.0,0.0004]
[1756824007303,0.90749783,111670.0,111660.0,0.0004]
[1756824007942,0.90849783,111670.0,111660.0,0.0004]
[1756824008092,0.91099783,111670.0,111660.0,0.0004]
[1756824008321,0.74901783,111670.0,111660.0,0.0004]
[1756824008521,0.74901783,111670.0,111660.0,0.00533]
[1756824008522,0.80471801,111670.0,111660.0,0.00533]
[1756824009130,0.80669801,111670.0,111660.0,0.00533]
[1756824009546,0.81460801,111670.0,111660.0,0.00533]
[1756824009745,0.65710801,111670.0,111660.0,0.00533]
[1756824010175,0.64523801,111670.0,111660.0,0.00533]
[1756824010321,0.77778294,111670.0,111660.0,0.00533]
[1756824010531,0.61830294,111670.0,111660.0,0.00533]
[1756824010735,0.52638695,111670.0,111660.0,0.04707156]
[1756824011378,0.52836695,111670.0,111660.0,0.04707156]
[1756824011589,0.52638695,111670.0,111660.0,0.04413156]
[1756824011834,0.52638695,111670.0,111660.0,0.04710156]
[1756824012362,0.68582695,111670.0,111660.0,0.04710156]
[1756824013007,0.68581839,111670.0,111660.0,0.04710156]
[1756824013251,0.52637839,111670.0,111660.0,0.04710156]
[1756824013463,0.001,111670.0,111660.0,0.22621673]
[1756824013676,0.001,111670.0,111660.0,1.15536166]
[1756824014321,0.001,111670.0,111660.0,0.99592166]
[1756824014539,0.18009913,111670.0,111660.0,0.15995637]
[1756824014771,0.18009913,111670.0,111660.0,0.22621673]
[1756824014975,0.18009913,111670.0,111660.0,0.04710156]
[1756824015191,0.21501742,111670.0,111660.0,0.04710156]
[1756824015408,0.17909913,111670.0,111660.0,0.04910156]
[1756824015646,0.17909913,111670.0,111660.0,0.05110156]
[1756824015872,0.17909913,111670.0,111660.0,0.04910156]
[1756824016299,0.17909913,111670.0,111660.0,0.05210156]
[1756824016714,0.17909913,111670.0,111660.0,0.23121673]
[1756824016935,0.1790838,111680.0,111670.0,0.22084069]
[1756824017144,0.18536657,111680.0,111670.0,0.04667156]
[1756824017352,0.18536657,111680.0,111670.0,0.22577069]
[1756824017566,0.17908309,111680.0,111670.0,0.22577069]
[1756824017770,0.18816042,111690.0,111680.0,0.04174156]
[1756824017989,0.19444322,111690.0,111680.0,0.04471156]
[1756824018225,0.19444322,111690.0,111680.0,0.04667156]
[1756824018464,0.00642281,111690.0,111680.0,0.22575465]
[1756824018680,0.18548987,111690.0,111680.0,0.22575465]
[1756824019168,0.18548987,111690.0,111680.0,0.04667156]
[1756824019382,0.17920707,111690.0,111680.0,0.04667156]
[1756824019591,0.17920707,111690.0,111680.0,0.22575465]
[1756824020008,0.17920707,111690.0,111680.0,0.23549242]
[1756824020183,0.17920707,111690.0,111680.0,0.25743124]
[1756824020397,0.00014001,111690.0,111680.0,0.25743124]
[1756824020559,0.17920707,111690.0,111680.0,0.25743124]
[1756824020787,0.17920707,111690.0,111680.0,0.23774815]
[1756824020995,0.00014001,111690.0,111680.0,0.41683124]
[1756824021422,0.17920707,111690.0,111680.0,0.23770815]
[1756824021852,0.17920707,111690.0,111680.0,0.41679124]
[1756824022086,0.00014001,111690.0,111680.0,1.07364136]
[1756824022298,0.00014001,111690.0,111680.0,1.23443735]
[1756824022553,0.00014001,111690.0,111680.0,1.57443735]
[1756824022739,0.00014001,111690.0,111680.0,0.91758723]
[1756824023372,0.00014001,111690.0,111680.0,1.41507735]
[1756824023574,0.00014001,111690.0,111680.0,0.91758723]
[1756824023750,0.00014001,111690.0,111680.0,1.41507735]
[1756824023979,0.00014001,111690.0,111680.0,0.91758723]
[1756824024567,0.17920707,111690.0,111680.0,0.30658815]
[1756824024780,0.17920707,111690.0,111680.0,0.48567124]
[1756824025420,0.17920707,111690.0,111680.0,0.30654815]
[1756824025626,0.17920707,111690.0,111680.0,0.34768081]
[1756824025854,0.17920707,111690.0,111680.0,0.5267639]
[1756824026102,0.00014001,111690.0,111680.0,1.18361402]
[1756824026313,0.00014001,111690.0,111680.0,1.27553001]
[1756824026757,0.00014001,111690.0,111680.0,0.61867989]
[1756824026980,0.00014001,111690.0,111680.0,1.27553001]
[1756824027621,0.00014001,111690.0,111680.0,0.61867989]
[1756824028050,0.00014001,111690.0,111680.0,0.88117989]
[1756824028258,0.00014001,111690.0,111680.0,1.53803001]
[1756824028558,0.00014001,111690.0,111680.0,1.35894692]
[1756824028769,0.18118707,111690.0,111680.0,0.34768081]
[1756824028948,0.17920707,111690.0,111680.0,0.34768081]
[1756824029201,0.17920707,111690.0,111680.0,0.5267639]
[1756824029423,0.00014001,111690.0,111680.0,0.5267639]
[1756824029653,0.00014001,111690.0,111680.0,0.61867989]
[1756824029866,0.17920707,111690.0,111680.0,0.61867989]
[1756824030206,0.00014001,111690.0,111680.0,0.61867989]
[1756824030404,0.00014001,111690.0,111680.0,1.27553001]
[1756824030834,0.00014001,111690.0,111680.0,1.26579224]
[1756824031033,0.00014001,111690.0,111680.0,1.10647224]
[1756824031253,0.00014001,111690.0,111680.0,0.60890212]
[1756824032743,0.17920707,111690.0,111680.0,0.42981903]
[1756824032951,0.17920707,111690.0,111680.0,0.60890212]
[1756824033158,0.00014001,111690.0,111680.0,0.60890212]
[1756824033404,0.17920707,111690.0,111680.0,0.44962212]
[1756824033598,0.17920707,111690.0,111680.0,0.42981903]
[1756824033851,0.18118707,111690.0,111680.0,0.20202156]
[1756824034070,0.7160836,111690.0,111680.0,0.001]
[1756824034297,0.68657021,111690.0,111680.0,0.001]
[1756824034519,0.52745422,111690.0,111680.0,0.04274156]
[1756824034752,0.52118707,111690.0,111680.0,0.04274156]
[1756824035402,0.17920707,111690.0,111680.0,0.22675465]
[1756824035628,0.00014001,111690.0,111680.0,0.24769347]
[1756824035847,0.17920707,111690.0,111680.0,0.24769347]
[1756824036097,0.00014001,111690.0,111680.0,0.24769347]
[1756824036278,0.17920707,111690.0,111680.0,0.24769347]
[1756824037015,0.00014001,111690.0,111680.0,0.24769347]
[1756824037238,0.00014001,111690.0,111680.0,0.33960946]
[1756824037661,0.17920707,111690.0,111680.0,0.33960946]
[1756824037869,0.00014001,111690.0,111680.0,0.33960946]
[1756824038073,0.00014001,111690.0,111680.0,0.99645958]
[1756824038301,0.00014001,111690.0,111680.0,1.0060212]
[1756824039268,0.00014001,111690.0,111680.0,0.34917108]
[1756824039474,0.00014001,111690.0,111680.0,0.50841108]
[1756824040676,0.17920707,111690.0,111680.0,0.50841108]
[1756824040887,0.17920707,111690.0,111680.0,0.32932799]
[1756824041107,0.18118707,111690.0,111680.0,0.20390156]
[1756824041747,0.18118707,111690.0,111680.0,0.04470156]
[1756824041947,0.18118707,111690.0,111680.0,0.20194156]
[1756824042309,0.18118707,111690.0,111680.0,0.04274156]
[1756824042517,0.18118707,111690.0,111680.0,0.20194156]
[1756824042950,0.17920707,111690.0,111680.0,0.38307465]
[1756824043165,0.17920707,111690.0,111680.0,0.38631465]
[1756824043482,0.17920707,111690.0,111680.0,0.20723156]
[1756824043635,0.18118707,111690.0,111680.0,0.20399156]
[1756824043840,0.18118707,111690.0,111680.0,0.20194156]
[1756824044049,0.17920707,111690.0,111680.0,0.38631465]
[1756824044252,0.17920707,111690.0,111680.0,0.20723156]
[1756824044536,0.00014001,111690.0,111680.0,0.40725347]
[1756824044744,0.00014001,111690.0,111680.0,0.49916946]
[1756824044959,0.00014001,111690.0,111680.0,1.15601958]
[1756824046720,0.00014001,111690.0,111680.0,0.33996946]
[1756824046920,0.00014001,111690.0,111680.0,1.15601958]
[1756824047608,0.00014001,111690.0,111680.0,0.49916946]
[1756824048193,0.00014001,111690.0,111680.0,1.15601958]
[1756824048629,0.18126707,111690.0,111680.0,0.20190156]
[1756824048992,0.18126707,111690.0,111680.0,0.04274156]
[1756824049173,0.18755924,111690.0,111680.0,0.20190156]
[1756824049600,0.22688231,111690.0,111680.0,0.04274156]
[1756824049811,0.18997924,111690.0,111680.0,0.04274156]
[1756824050035,0.34761523,111690.0,111680.0,0.04274156]
[1756824052069,0.34761523,111690.0,111680.0,0.001]
[1756824052966,0.84677523,111690.0,111680.0,0.001]
[1756824053184,0.93869122,111690.0,111680.0,0.001]
[1756824053668,0.17909913,111670.0,111660.0,0.04214156]
[1756824053890,0.1853913,111670.0,111660.0,0.04214156]
[1756824054410,0.2555913,111670.0,111660.0,0.04214156]
[1756824054630,0.2531713,111670.0,111660.0,0.04214156]
[1756824055577,0.74689217,111670.0,111660.0,0.0004]
[1756824056016,0.68750729,111670.0,111660.0,0.0004]
[1756824057150,0.84420729,111670.0,111660.0,0.0004]
[1756824057571,0.68508729,111670.0,111660.0,0.0004]
[1756824057783,0.84420729,111670.0,111660.0,0.0004]
[1756824058366,0.77848729,111670.0,111660.0,0.04214156]
[1756824058587,0.78090729,111670.0,111660.0,0.04214156]
[1756824058913,0.93854328,111670.0,111660.0,0.04214156]
[1756824059355,0.93854328,111670.0,111660.0,0.0004]
[1756824060654,0.84662729,111670.0,111660.0,0.0004]
[1756824060773,0.68750729,111670.0,111660.0,0.0004]
[1756824061012,0.84662729,111670.0,111660.0,0.0004]
[1756824062501,0.68750729,111670.0,111660.0,0.0004]
[1756824062715,0.84662729,111670.0,111660.0,0.0004]
[1756824063131,0.87596046,111670.0,111660.0,1e-08]
[1756824064038,0.84662729,111670.0,111660.0,1e-08]
[1756824064240,0.84762729,111670.0,111660.0,1e-08]
[1756824064423,0.84662729,111670.0,111660.0,1e-08]
[1756824064645,0.86645497,111670.0,111660.0,1e-08]
[1756824064758,0.86945497,111670.0,111660.0,1e-08]
[1756824064986,0.84820729,111670.0,111660.0,1e-08]
[1756824065203,0.68908729,111670.0,111660.0,1e-08]
[1756824065432,0.84720729,111670.0,111660.0,1e-08]
[1756824065863,0.84920729,111670.0,111660.0,1e-08]
[1756824066521,0.68805825,111670.0,111660.0,1e-08]
[1756824066726,0.84717825,111670.0,111660.0,1e-08]
[1756824066958,0.84417825,111670.0,111660.0,1e-08]
[1756824067186,0.77845825,111670.0,111660.0,0.00205001]
[1756824067394,0.78045825,111670.0,111660.0,1e-08]
[1756824067599,0.87237424,111670.0,111660.0,1e-08]
[1756824067829,0.78041825,111670.0,111660.0,0.00205001]
[1756824068055,0.78141825,111670.0,111660.0,1e-08]
[1756824068737,0.52836226,111670.0,111660.0,0.00529001]
[1756824068949,0.18836226,111670.0,111660.0,0.04703157]
[1756824069155,0.34744226,111670.0,111660.0,0.04703157]
[1756824069662,0.34644226,111670.0,111660.0,0.04703157]
[1756824069877,0.18736226,111670.0,111660.0,0.04703157]
[1756824070082,0.18109913,111670.0,111660.0,0.04703157]
[1756824070508,0.17909913,111670.0,111660.0,0.04703157]
[1756824070928,0.18118913,111670.0,111660.0,0.04479157]
[1756824071130,0.34653436,111670.0,111660.0,0.04475157]
[1756824071479,0.34653436,111670.0,111660.0,0.04274157]
[1756824071707,0.68653436,111670.0,111660.0,0.04274157]
[1756824071938,0.86525253,111670.0,111660.0,0.00100001]
[1756824072469,0.86764253,111670.0,111660.0,0.00100001]
[1756824072877,0.8945769,111670.0,111660.0,0.00100001]
[1756824073278,0.8921869,111670.0,111660.0,0.00100001]
[1756824073485,0.8945769,111670.0,111660.0,0.00100001]
[1756824073690,0.9591969,111670.0,111660.0,0.00100001]
[1756824074140,0.17913121,111650.0,111640.0,0.00258367]
[1756824074348,0.17913121,111650.0,111630.0,0.00258367]
[1756824074349,0.17916164,111640.0,111630.0,0.00258367]
[1756824074524,0.18751687,111640.0,111630.0,0.00459367]
[1756824074873,0.18542687,111640.0,111630.0,0.00459367]
[1756824075532,0.18541248,111640.0,111630.0,0.00506229]
[1756824075743,0.17914725,111640.0,111630.0,0.18422559]
[1756824075976,0.17914725,111640.0,111630.0,0.26756229]
[1756824076187,0.17914725,111640.0,111630.0,0.27055229]
[1756824077146,0.17914725,111640.0,111630.0,0.27255229]
[1756824077351,0.18542539,111640.0,111630.0,0.27255229]
[1756824078409,0.18542539,111640.0,111630.0,0.27455229]
[1756824078821,0.00627814,111640.0,111630.0,0.27455229]
[1756824079021,0.18542539,111640.0,111630.0,0.27455229]
[1756824079262,0.18542539,111640.0,111630.0,0.01005229]
[1756824079665,0.18542539,111640.0,111630.0,0.01105229]
[1756824080213,0.18542539,111640.0,111630.0,0.01005229]
[1756824080632,0.18542539,111640.0,111630.0,0.19021559]
[1756824080845,0.00627814,111640.0,111630.0,0.61217863]
[1756824081062,0.00627814,111640.0,111630.0,0.72503344]
[1756824081274,0.17913121,111650.0,111640.0,0.20007352]
[1756824081478,0.18542091,111650.0,111640.0,0.36407352]
[1756824081887,0.0062897,111650.0,111640.0,0.36407352]
[1756824082729,0.18542091,111650.0,111640.0,0.36508607]
[1756824083072,0.0062897,111650.0,111640.0,0.36508607]
[1756824083430,0.0062897,111650.0,111640.0,0.78704911]
[1756824083660,0.18542091,111650.0,111640.0,0.78704911]
[1756824084101,0.0062897,111650.0,111640.0,0.78704911]
[1756824084313,0.17909913,111670.0,111660.0,0.00258367]
[1756824084553,0.18748075,111670.0,111660.0,0.16658367]
[1756824084807,0.18748075,111670.0,111660.0,0.16359367]
[1756824085425,0.18539075,111670.0,111660.0,0.16658367]
[1756824085627,0.18539075,111670.0,111660.0,0.34569884]
[1756824086022,0.18739075,111670.0,111660.0,0.34569884]
[1756824086249,0.18839075,111670.0,111660.0,0.34569884]
[1756824086578,0.00929162,111670.0,111660.0,0.7886007]
[1756824086794,0.00629162,111670.0,111660.0,0.7886007]
[1756824087011,0.18809636,111690.0,111680.0,0.00258367]
[1756824087258,0.19438428,111690.0,111680.0,0.16654367]
[1756824087948,0.18543093,111690.0,111680.0,0.16654367]
[1756824088161,0.18766094,111690.0,111680.0,0.16654367]
[1756824088342,0.18766094,111690.0,111680.0,0.00459367]
[1756824088543,0.18766094,111690.0,111680.0,0.16355367]
[1756824088799,0.18766094,111690.0,111680.0,0.00258367]
[1756824089006,0.19089094,111690.0,111680.0,0.00258367]
[1756824089209,0.18766094,111690.0,111680.0,0.00258367]
[1756824089477,0.18757094,111690.0,111680.0,0.00758367]
[1756824089650,0.18857094,111690.0,111680.0,0.00758367]
[1756824089882,0.18857094,111690.0,111680.0,0.16654367]
[1756824090090,0.19066094,111690.0,111680.0,0.16650367]
[1756824090295,0.18857094,111690.0,111680.0,0.00758367]
[1756824090483,0.20467977,111690.0,111680.0,0.16351367]
[1756824090673,0.20467977,111690.0,111680.0,0.00258367]
[1756824090915,0.20790977,111690.0,111680.0,0.16150367]
[1756824091091,0.20790977,111690.0,111680.0,0.00258367]
[1756824091303,0.20790977,111690.0,111680.0,0.16150367]
[1756824091506,0.20790977,111690.0,111680.0,0.00258367]
[1756824091965,0.17909913,111670.0,111660.0,0.16150367]
[1756824092168,0.18118913,111670.0,111660.0,0.00258367]
[1756824092569,0.1874667,111670.0,111660.0,0.00459367]
[1756824093120,0.1874667,111670.0,111660.0,0.00258367]
[1756824093581,0.17911517,111660.0,111650.0,0.16191]
[1756824093766,0.17911517,111660.0,111650.0,0.16650367]
[1756824093979,0.18120517,111660.0,111650.0,0.17334043]
[1756824094183,0.17911517,111660.0,111650.0,0.17075676]
[1756824094341,0.17911517,111660.0,111650.0,0.17633043]
[1756824094565,0.18120517,111660.0,111650.0,0.16347367]
[1756824095191,0.17911517,111660.0,111650.0,0.34260488]
[1756824095534,0.17911517,111660.0,111650.0,0.34559488]
[1756824095728,0.17911517,111660.0,111650.0,0.16646367]
[1756824096125,0.17911517,111660.0,111650.0,0.34659488]
[1756824096418,0.17911517,111660.0,111650.0,0.16746367]
[1756824096627,0.17911517,111660.0,111650.0,0.16946367]
[1756824096864,0.17911517,111660.0,111650.0,0.01058367]
[1756824097082,0.21737123,111660.0,111650.0,0.00558367]
[1756824097289,0.47444867,111660.0,111650.0,0.003]
[1756824097494,0.50613261,111660.0,111650.0,0.003]
[1756824098592,0.49985116,111660.0,111650.0,0.003]
[1756824098806,0.34725394,111660.0,111650.0,0.003]
[1756824100739,0.27940394,111660.0,111650.0,0.00765367]
[1756824101150,0.27940394,111660.0,111650.0,0.00558367]
[1756824101430,0.28234394,111660.0,111650.0,0.00558367]
[1756824101796,0.27940394,111660.0,111650.0,0.00558367]
[1756824101998,0.18539795,111660.0,111650.0,0.01067367]
[1756824102218,0.18539795,111660.0,111650.0,0.16951367]